[Event "1st Regina Cattolica Open 2019"]
[Site "Cattolica"]
[Date "2019.06.15"]
[Round "3.10"]
[White "Varvaglione, Antonio"]
[Black "Deshpande Abhishek"]
[Result "0-1"]
[ECO "A07"]
[WhiteElo "2154"]
[BlackElo "1827"]
[Annotator "NA"]
[PlyCount "93"]
[EventDate "2019.06.14"]
[EventType "swiss"]
[EventCountry "ITA"]
[SourceTitle "playchess.com"]
[Source "ChessBase"]
[SourceQuality "1"]
[TimeControl "5400+30"]

1. Nf3 {[%emt 0:00:00]} d5 {[%emt 0:04:38]} 2. g3 {[%emt 0:00:11]} Nf6 {[%emt 0:00:09]} 3. Bg2 {[%emt 0:00:31]} c6 {[%emt 0:00:09]} 4. d3 {[%emt 0:00:47]} Bf5 {[%emt 0:00:20]} 5. Nbd2 {[%emt 0:05:09]} e6 {[%emt 0:00:25]} 6. O-O {[%emt 0:00:38]} Be7 {[%emt 0:00:52]} 7. Qe1 {[%emt 0:01:04]} O-O {[%emt 0:00:24]} 8. e4 {[%emt 0:00:36]} dxe4 {[%emt 0:00:34]} 9. dxe4 {[%emt 0:00:27]} Bg6 {[%emt 0:00:11]} 10. Qe2 {[%emt 0:01:12]} Nbd7 {[%emt 0:01:49]} 11. e5 {[%emt 0:16:49]} Nd5 {[%emt 0:00:46]} 12. Ne4 {[%emt 0:00:49]} Qc7 {[%emt 0:01:44]} 13. c4 {[%emt 0:00:44]} N5b6 {[%emt 0:00:49]} 14. Bf4 {[%emt 0:00:49]} Bxe4 {[%emt 0:01:27]} 15. Qxe4 {[%emt 0:00:34]} Rad8 {[%emt 0:00:38]} 16. Rad1 {[%emt 0:09:45]} Nc5 {[%emt 0:00:57]} 17. Qc2 {[%emt 0:01:25]} Rxd1 {[%emt 0:00:19]} 18. Rxd1 {[%emt 0:00:16]} Rd8 {[%emt 0:00:19]} 19. Rd6 {[%emt 0:19:40]} Nc8 {[%emt 0:06:50]} 20. Rd2 {[%emt 0:13:10]} Rxd2 {[%emt 0:03:57]} 21. Bxd2 {[%emt 0:00:50]} Qd8 {[%emt 0:00:53]} 22. Bf1 {[%emt 0:01:03]} Nd7 {[%emt 0:01:51]} 23. Bd3 {[%emt 0:02:43]} Nf8 {[%emt 0:01:00]} 24. h4 {[%emt 0:01:21]} h6 {[%emt 0:00:45]} 25. Be4 {[%emt 0:01:13]} Qd7 {[%emt 0:00:49]} 26. h5 {[%emt 0:01:43]} Bd8 {[%emt 0:06:08]} 27. Qc1 {[%emt 0:00:54]} f5 {[%emt 0:04:13]} 28. exf6 {[%emt 0:00:28]} Bxf6 {[%emt 0:00:09]} 29. Bf4 {[%emt 0:02:04]} Ne7 {[%emt 0:01:07]} 30. b3 {[%emt 0:01:43]} Nf5 {[%emt 0:02:12]} 31. Qa3 {[%emt 0:03:51]} a6 {[%emt 0:01:11]} 32. Qb4 {[%emt 0:01:40]} Nd4 {[%emt 0:02:49]} 33. Nxd4 {[%emt 0:00:59]} Bxd4 {[%emt 0:01:17]} 34. Qd6 {[%emt 0:04:14]} Qxd6 {[%emt 0:01:44]} 35. Bxd6 {[%emt 0:00:05]} Kf7 {[%emt 0:00:24]} 36. Kf1 {[%emt 0:00:31]} Nd7 {[%emt 0:00:24]} 37. Ke2 {[%emt 0:00:51]} Kf6 {[%emt 0:00:14]} 38. f4 {[%emt 0:01:22]} e5 {[%emt 0:00:37]} 39. b4 {[%emt 0:01:50]} Ke6 {[%emt 0:04:27]} 40. c5 {[%emt 0:00:14]} Nf6 {[%emt 0:04:37]} 41. Bg6 {[%emt 0:03:16]} exf4 {[%emt 0:07:47]} 42. gxf4 {[%emt 0:00:07]} Nd5 {[%emt 0:00:33]} 43. a3 {[%emt 0:01:20]} Bb2 {[%emt 0:02:44]} 44. Kd3 {[%emt 0:00:52]} Bxa3 {[%emt 0:00:43]} 45. Kc4 {[%emt 0:01:05]} Bxb4 {[%emt 0:01:50]} 46. Be5 {[%emt 0:00:23]} Bd2 {[%emt 0:00:21]} 47. Kd4 {Kxe5+} 0-1

[Event "1st Regina Cattolica Open 2019"]
[Site "Cattolica"]
[Date "2019.06.16"]
[Round "4.2"]
[White "Laketic, Gojko"]
[Black "Kjartansson, Gudmundur"]
[Result "0-1"]
[ECO "E21"]
[WhiteElo "2387"]
[BlackElo "2459"]
[Annotator "RC"]
[PlyCount "152"]
[EventDate "2019.06.14"]
[EventType "swiss"]
[EventCountry "ITA"]
[SourceTitle "playchess.com"]
[Source "ChessBase"]
[SourceQuality "1"]
[TimeControl "5400+30"]

1. d4 {[%emt 0:00:40]} Nf6 {[%emt 0:00:10]} 2. c4 {[%emt 0:00:17]} e6 {[%emt 0:00:04]} 3. Nc3 {[%emt 0:00:36]} Bb4 {[%emt 0:00:04]} 4. Bd2 {[%emt 0:00:45]} O-O {[%emt 0:00:34]} 5. a3 {[%emt 0:01:56]} Bxc3 {[%emt 0:00:40]} 6. Bxc3 {[%emt 0:00:10]} b6 {[%emt 0:01:14]} 7. Nf3 {[%emt 0:04:41]} Ne4 {[%emt 0:02:21]} 8. Rc1 {[%emt 0:04:43]} Bb7 {[%emt 0:06:34]} 9. e3 {[%emt 0:00:45]} d6 {[%emt 0:02:49]} 10. Be2 {[%emt 0:02:12]} Nd7 {[%emt 0:00:22]} 11. O-O {[%emt 0:00:44]} Nxc3 {[%emt 0:01:53]} 12. Rxc3 {[%emt 0:00:47]} Re8 {[%emt 0:13:23]} 13. b4 {[%emt 0:12:20]} a5 {[%emt 0:01:37]} 14. Qc2 {[%emt 0:11:31]} axb4 {[%emt 0:02:17]} 15. axb4 {[%emt 0:00:02]} c5 {[%emt 0:01:12]} 16. Rb1 {[%emt 0:04:47]} Ra7 {[%emt 0:04:35]} 17. Nd2 {[%emt 0:08:33]} Qh4 {[%emt 0:25:45]} 18. bxc5 {[%emt 0:03:33]} bxc5 {[%emt 0:00:35]} 19. Bf3 {[%emt 0:02:21]} Bxf3 {[%emt 0:03:45]} 20. Nxf3 {[%emt 0:00:20]} Qd8 {[%emt 0:02:56]} 21. h3 {[%emt 0:00:21]} h6 {[%emt 0:00:21]} 22. Qd1 {[%emt 0:13:59]} Qc7 {[%emt 0:01:47]} 23. Ra1 {[%emt 0:02:09]} Rea8 {[%emt 0:01:22]} 24. Rxa7 {[%emt 0:01:34]} Rxa7 {[%emt 0:00:04]} 25. Rc1 {[%emt 0:01:58]} Ra6 {[%emt 0:01:27]} 26. Ra1 {[%emt 0:03:22]} Rxa1 {[%emt 0:00:25]} 27. Qxa1 {[%emt 0:00:01]} cxd4 {[%emt 0:00:19]} 28. Qxd4 {[%emt 0:00:25]} Nb6 {[%emt 0:01:13]} 29. Nd2 {[%emt 0:00:13]} Qc6 {[%emt 0:01:18]} 30. f4 {[%emt 0:02:28]} f6 {[%emt 0:01:34]} 31. Kf2 {[%emt 0:05:13]} Kf7 {[%emt 0:00:29]} 32. Ne4 {[%emt 0:01:02]} d5 {[%emt 0:03:41]} 33. cxd5 {[%emt 0:00:26]} Nxd5 {[%emt 0:00:10]} 34. Qc5 {[%emt 0:01:35]} Qa4 {[%emt 0:01:05]} 35. Qc4 {[%emt 0:02:24]} Qa3 {[%emt 0:02:42]} 36. Qd4 {[%emt 0:00:47]} f5 {[%emt 0:03:29]} 37. Nd2 {[%emt 0:00:29]} Kg8 {[%emt 0:03:03]} 38. Qe5 {[%emt 0:01:29]} Kf7 {[%emt 0:01:10]} 39. Qd4 {[%emt 0:00:13]} Qc1 {[%emt 0:00:42]} 40. Nf3 {[%emt 0:03:29]} Nf6 {[%emt 0:01:25]} 41. Nd2 {[%emt 0:01:10]} Qd1 {[%emt 0:00:39]} 42. Qa7+ {[%emt 0:00:47]} Kg6 {[%emt 0:02:12]} 43. Qa2 {[%emt 0:00:19]} Kh5 {[%emt 0:01:04]} 44. g3 {[%emt 0:01:32]} Kg6 {[%emt 0:01:02]} 45. Nf1 {[%emt 0:01:07]} Ne4+ {[%emt 0:01:50]} 46. Kg2 {[%emt 0:00:05]} Kh7 {[%emt 0:01:08]} 47. Qb2 {[%emt 0:00:29]} Kh8 {[%emt 0:04:01]} 48. Qb8+ {[%emt 0:00:18]} Kh7 {[%emt 0:00:02]} 49. Qb2 {[%emt 0:00:02]} Qd3 {[%emt 0:01:04]} 50. Qa2 {[%emt 0:00:48]} h5 {[%emt 0:00:41]} 51. Kg1 {[%emt 0:01:38]} Qd1 {[%emt 0:00:29]} 52. Kg2 {[%emt 0:00:19]} Kh8 {[%emt 0:00:15]} 53. Qa8+ {[%emt 0:00:11]} Kh7 {[%emt 0:00:01]} 54. Qa2 {[%emt 0:00:02]} Qe1 {[%emt 0:00:58]} 55. Qc2 {[%emt 0:01:07]} Kh6 {[%emt 0:00:54]} 56. Qa2 {[%emt 0:00:35]} Kh7 {[%emt 0:00:16]} 57. Qc2 {[%emt 0:00:10]} h4 {[%emt 0:00:27]} 58. gxh4 {[%emt 0:00:46]} Kh6 {[%emt 0:00:16]} 59. Qa2 {[%emt 0:01:55]} Kh5 {[%emt 0:00:13]} 60. Qb2 {[%emt 0:00:37]} Kxh4 {[%emt 0:00:23]} 61. Qa2 {[%emt 0:00:29]} Ng3 {[%emt 0:00:42]} 62. Nxg3 {[%emt 0:00:40]} Qxg3+ {[%emt 0:00:04]} 63. Kf1 {[%emt 0:00:08]} Qxe3 {[%emt 0:00:35]} 64. Qa4 {[%emt 0:00:51]} Kg3 {[%emt 0:00:59]} 65. Qc2 {[%emt 0:00:28]} Qxf4+ {[%emt 0:00:30]} 66. Kg1 {[%emt 0:00:01]} Qd4+ {[%emt 0:00:51]} 67. Kf1 {[%emt 0:00:14]} Qa1+ {[%emt 0:00:31]} 68. Ke2 {[%emt 0:00:11]} Qg1 {[%emt 0:00:34]} 69. Qb3+ {[%emt 0:00:29]} Kh2 {[%emt 0:00:20]} 70. Qxe6 {[%emt 0:00:12]} Qg2+ {[%emt 0:00:17]} 71. Kd1 {[%emt 0:00:06]} Qf3+ {[%emt 0:00:22]} 72. Kd2 {[%emt 0:00:11]} Qf4+ {[%emt 0:00:13]} 73. Kd1 {[%emt 0:00:11]} Kxh3 {[%emt 0:00:40]} 74. Qd7 {[%emt 0:00:01]} Qf3+ {[%emt 0:00:27]} 75. Ke1 {[%emt 0:00:06]} g5 {[%emt 0:00:13]} 76. Qd6 {[%emt 0:01:12]} Qg3+ {[%emt 0:00:18]} 0-1

[Event "1st Regina Cattolica Open 2019"]
[Site "Cattolica"]
[Date "2019.06.16"]
[Round "4.8"]
[White "Rago, Riccardo"]
[Black "Tramalloni, Luca"]
[Result "1-0"]
[ECO "D40"]
[WhiteElo "2097"]
[BlackElo "2008"]
[Annotator "NA RC"]
[PlyCount "101"]
[EventDate "2019.06.14"]
[EventType "swiss"]
[EventCountry "ITA"]
[SourceTitle "playchess.com"]
[Source "ChessBase"]
[SourceQuality "1"]
[TimeControl "5400+30"]

1. Nf3 {[%emt 0:00:00]} c5 {[%emt 0:00:01]} 2. c4 {[%emt 0:00:26]} Nf6 {[%emt 0:00:46]} 3. Nc3 {[%emt 0:00:09]} e6 {[%emt 0:00:10]} 4. d4 {[%emt 0:06:45]} d5 {[%emt 0:09:28]} 5. e3 {[%emt 0:04:44]} Nc6 {[%emt 0:00:39]} 6. Be2 {[%emt 0:03:30]} a6 {[%emt 0:05:45]} 7. O-O {[%emt 0:06:57]} Be7 {[%emt 0:00:24]} 8. b3 {[%emt 0:01:45]} O-O {[%emt 0:02:11]} 9. Bb2 {[%emt 0:00:27]} cxd4 {[%emt 0:10:29]} 10. Nxd4 {[%emt 0:00:43]} Nxd4 {[%emt 0:04:27]} 11. Qxd4 {[%emt 0:09:17]} dxc4 {[%emt 0:01:09]} 12. bxc4 {[%emt 0:00:11]} Qxd4 {[%emt 0:16:17]} 13. exd4 {[%emt 0:00:08]} Rb8 {[%emt 0:05:46]} 14. Rfd1 {[%emt 0:02:36]} Rd8 {[%emt 0:00:51]} 15. Rac1 {[%emt 0:05:15]} Bd7 {[%emt 0:02:44]} 16. Bf3 {[%emt 0:01:04]} Bd6 {[%emt 0:04:20]} 17. Ne4 {[%emt 0:02:32]} Nxe4 {[%emt 0:00:44]} 18. Bxe4 {[%emt 0:00:08]} Bc6 {[%emt 0:01:06]} 19. f3 {[%emt 0:02:21]} Bf4 {[%emt 0:07:11]} 20. Rc3 {[%emt 0:00:26]} Ba4 {[%emt 0:01:21]} 21. Bc2 {[%emt 0:00:18]} Bxc2 {[%emt 0:01:37]} 22. Rxc2 {[%emt 0:00:08]} Rbc8 {[%emt 0:00:53]} 23. Kf2 {[%emt 0:00:26]} Bg5 {[%emt 0:00:39]} 24. g3 {[%emt 0:00:25]} Kf8 {[%emt 0:00:36]} 25. f4 {[%emt 0:01:58]} Bf6 {[%emt 0:00:40]} 26. Ke3 {[%emt 0:00:11]} Rd7 {[%emt 0:01:05]} 27. Ke4 {[%emt 0:03:04]} Rdc7 {[%emt 0:01:58]} 28. Rdc1 {[%emt 0:02:18]} Ke8 {[%emt 0:02:28]} 29. Rc3 {[%emt 0:05:45]} Rd8 {[%emt 0:01:26]} 30. Rb3 {[%emt 0:00:52]} Rcd7 {[%emt 0:02:04]} 31. Rd3 {[%emt 0:02:32]} Rc7 {[%emt 0:03:09]} 32. Ba3 {[%emt 0:03:56]} Rdc8 {[%emt 0:00:18]} 33. c5 {[%emt 0:05:07]} Rd8 {[%emt 0:02:48]} 34. Rb1 {[%emt 0:02:08]} Rcd7 {[%emt 0:00:57]} 35. Bb2 {[%emt 0:00:12]} Be7 {[%emt 0:00:58]} 36. Rb3 {[%emt 0:03:25]} Bf6 {[%emt 0:01:34]} 37. Rb4 {[%emt 0:00:44]} Be7 {[%emt 0:02:43]} 38. Bc3 {[%emt 0:00:39]} f5+ {[%emt 0:00:05]} 39. Kf3 {[%emt 0:00:19]} Bxc5 {[%emt 0:02:40]} 40. Rxb7 {[%emt 0:00:11]} Rxb7 {[%emt 0:02:05]} 41. Rxb7 {[%emt 0:00:08]} Bxd4 {[%emt 0:00:02]} 42. Bxd4 {[%emt 0:01:40]} Rxd4 {[%emt 0:00:06]} 43. Rxg7 {[%emt 0:00:04]} Ra4 {[%emt 0:04:19]} 44. Rxh7 {[%emt 0:00:15]} Rxa2 {[%emt 0:00:15]} 45. Ke3 {[%emt 0:01:16]} a5 {[%emt 0:00:24]} 46. Kd4 {[%emt 0:00:36]} Kf8 {[%emt 0:00:35]} 47. Ke5 {[%emt 0:00:47]} Re2+ {[%emt 0:00:29]} 48. Kf6 {[%emt 0:00:11]} Kg8 {[%emt 0:00:17]} 49. Rg7+ {[%emt 0:00:23]} Kh8 {[%emt 0:00:20]} 50. Ra7 {[%emt 0:00:07]} Rxh2 {[%emt 0:00:28]} 51. Kg6 {[%emt 0:00:09]} 1-0

[Event "1st Regina Cattolica Open 2019"]
[Site "Cattolica"]
[Date "2019.06.16"]
[Round "4.9"]
[White "Volpinari, Danilo"]
[Black "Casagrande, Federico"]
[Result "1/2-1/2"]
[ECO "E17"]
[WhiteElo "1966"]
[BlackElo "1883"]
[Annotator "NA RC"]
[PlyCount "37"]
[EventDate "2019.06.14"]
[EventType "swiss"]
[EventCountry "ITA"]
[SourceTitle "playchess.com"]
[Source "ChessBase"]
[SourceQuality "1"]
[TimeControl "5400+30"]

1. d4 {[%emt 0:00:19]} Nf6 {[%emt 0:00:00]} 2. Nf3 {[%emt 0:00:52]} e6 {[%emt 0:00:03]} 3. g3 {[%emt 0:00:43]} b6 {[%emt 0:02:46]} 4. Bg2 {[%emt 0:00:07]} Bb7 {[%emt 0:00:06]} 5. O-O {[%emt 0:00:08]} Be7 {[%emt 0:00:41]} 6. c4 {[%emt 0:03:17]} O-O {[%emt 0:01:20]} 7. Nc3 {[%emt 0:01:49]} d6 {[%emt 0:03:08]} 8. Qc2 {[%emt 0:01:40]} c5 {[%emt 0:09:39]} 9. dxc5 {[%emt 0:04:30]} bxc5 {[%emt 0:05:52]} 10. Rd1 {[%emt 0:02:40]} Qb6 {[%emt 0:05:42]} 11. Bf4 {[%emt 0:11:23]} Rd8 {[%emt 0:01:34]} 12. h3 {[%emt 0:07:33]} Bc6 {[%emt 0:12:35]} 13. g4 {[%emt 0:15:34]} Qb7 {[%emt 0:03:40]} 14. Ne1 {[%emt 0:07:04]} h6 {[%emt 0:08:42]} 15. Rd2 {[%emt 0:03:27]} d5 {[%emt 0:09:12]} 16. cxd5 {[%emt 0:03:54]} exd5 {[%emt 0:01:26]} 17. e3 {[%emt 0:03:47]} Na6 {[%emt 0:02:18]} 18. Rad1 {[%emt 0:01:07]} c4 {[%emt 0:05:10]} 19. Qf5 {[%emt 0:07:05]} 1/2-1/2

[Event "1st Regina Cattolica Open 2019"]
[Site "Cattolica"]
[Date "2019.06.16"]
[Round "5.1"]
[White "Kjartansson, Gudmundur"]
[Black "Gilevych, Artem"]
[Result "1-0"]
[ECO "D31"]
[WhiteElo "2459"]
[BlackElo "2448"]
[Annotator "ChessBase"]
[PlyCount "86"]
[EventDate "2019.06.14"]
[EventType "swiss"]
[EventCountry "ITA"]
[SourceTitle "playchess.com"]
[Source "ChessBase"]
[SourceQuality "1"]
[TimeControl "5400+30"]

1. d4 {[%emt 0:00:00]} d5 {[%emt 0:00:00]} 2. c4 {[%emt 0:00:00]} e6 {[%emt 0:00:00]} 3. Nc3 {[%emt 0:00:00]} Bb4 {[%emt 0:00:00]} 4. a3 {[%emt 0:00:03]} Bxc3+ {[%emt 0:00:00]} 5. bxc3 {[%emt 0:00:03]} c6 {[%emt 0:01:00]} 6. a4 {[%emt 0:00:21]} b6 {[%emt 0:04:17]} 7. Ba3 {[%emt 0:02:27]} Ba6 {[%emt 0:03:43]} 8. e4 {[%emt 0:04:30]} dxe4 {[%emt 0:06:16]} 9. Qg4 {[%emt 0:05:04]} Nf6 {[%emt 0:00:33]} 10. Qf4 {[%emt 0:07:23]} c5 {[%emt 0:05:23]} 11. dxc5 {[%emt 0:02:03]} O-O {[%emt 0:00:17]} 12. cxb6 {[%emt 0:06:13]} Re8 {[%emt 0:02:15]} 13. bxa7 {[%emt 0:21:06]} Rxa7 {[%emt 0:07:00]} 14. Be2 {[%emt 0:11:55]} Qc8 {[%emt 0:16:49]} 15. Bd6 {[%emt 0:03:57]} Nbd7 {[%emt 0:21:07]} 16. Qe3 {[%emt 0:01:30]} Ra8 {[%emt 0:11:32]} 17. c5 {[%emt 0:01:28]} Qc6 {[%emt 0:01:29]} 18. Bxa6 {[%emt 0:01:38]} Rxa6 {[%emt 0:00:28]} 19. Ne2 {[%emt 0:00:27]} Rxa4 {[%emt 0:03:16]} 20. Rxa4 {[%emt 0:02:45]} Qxa4 {[%emt 0:00:02]} 21. O-O {[%emt 0:00:09]} Rc8 {[%emt 0:02:11]} 22. Qd4 {[%emt 0:12:42]} Qc6 {[%emt 0:00:36]} 23. Ra1 {[%emt 0:01:21]} h6 {[%emt 0:00:24]} 24. Ra5 {[%emt 0:00:35]} e5 {[%emt 0:05:56]} 25. Qd2 {[%emt 0:05:39]} Ne8 {[%emt 0:04:45]} 26. h3 {[%emt 0:00:56]} Nxd6 {[%emt 0:01:14]} 27. cxd6 {[%emt 0:00:11]} Nf6 {[%emt 0:01:10]} 28. Ng3 {[%emt 0:06:26]} g6 {[%emt 0:01:27]} 29. Rxe5 {[%emt 0:00:58]} Rd8 {[%emt 0:00:43]} 30. Qxh6 {[%emt 0:00:32]} Qxd6 {[%emt 0:00:32]} 31. Rg5 {[%emt 0:01:58]} Rb8 {[%emt 0:00:01]} 32. Kh2 {[%emt 0:00:50]} Rb2 {[%emt 0:00:46]} 33. Ra5 {[%emt 0:00:07]} Qb8 {[%emt 0:00:43]} 34. Qe3 {[%emt 0:00:31]} Kh7 {[%emt 0:00:29]} 35. Ra4 {[%emt 0:01:03]} Rb1 {[%emt 0:00:14]} 36. Qd4 {[%emt 0:00:25]} Qf4 {[%emt 0:00:33]} 37. Qe3 {[%emt 0:00:33]} Qe5 {[%emt 0:00:45]} 38. f4 {[%emt 0:00:22]} Qe8 {[%emt 0:00:25]} 39. Rd4 {[%emt 0:00:18]} Qa8 {[%emt 0:00:35]} 40. Nxe4 {[%emt 0:00:13]} Nh5 {[%emt 0:00:07]} 41. Ng5+ {[%emt 0:00:21]} Kg7 {[%emt 0:00:51]} 42. Qe5+ {[%emt 0:00:35]} Kg8 {[%emt 0:00:34]} 43. Nxf7 {[%emt 0:01:10]} Ng7 {[%emt 0:00:31]} 1-0

[Event "1st Regina Cattolica Open 2019"]
[Site "Cattolica"]
[Date "2019.06.16"]
[Round "5.2"]
[White "Vovk, Yuri"]
[Black "Laketic, Gojko"]
[Result "1-0"]
[ECO "D15"]
[WhiteElo "2586"]
[BlackElo "2387"]
[Annotator "ChessBase"]
[PlyCount "63"]
[EventDate "2019.06.14"]
[EventType "swiss"]
[EventCountry "ITA"]
[SourceTitle "playchess.com"]
[Source "ChessBase"]
[SourceQuality "1"]
[TimeControl "5400+30"]

1. d4 {[%emt 0:00:00]} Nf6 {[%emt 0:01:28]} 2. c4 {[%emt 0:00:08]} c6 {[%emt 0:02:09]} 3. Nc3 {[%emt 0:00:12]} d5 {[%emt 0:00:09]} 4. Nf3 {[%emt 0:00:08]} Qb6 {[%emt 0:01:49]} 5. Qc2 {[%emt 0:08:42]} Bg4 {[%emt 0:03:41]} 6. e3 {[%emt 0:11:01]} e6 {[%emt 0:01:44]} 7. Bd3 {[%emt 0:00:57]} Nbd7 {[%emt 0:01:15]} 8. Bd2 {[%emt 0:00:23]} Qc7 {[%emt 0:23:59]} 9. cxd5 {[%emt 0:06:37]} exd5 {[%emt 0:01:38]} 10. Nh4 {[%emt 0:00:48]} Nb6 {[%emt 0:05:26]} 11. h3 {[%emt 0:04:05]} Be6 {[%emt 0:04:33]} 12. O-O {[%emt 0:02:18]} Be7 {[%emt 0:06:29]} 13. Nf3 {[%emt 0:07:31]} Nc4 {[%emt 0:03:13]} 14. Bxc4 {[%emt 0:02:39]} dxc4 {[%emt 0:00:02]} 15. e4 {[%emt 0:02:07]} h6 {[%emt 0:01:14]} 16. Rfe1 {[%emt 0:06:19]} O-O {[%emt 0:03:52]} 17. Ne2 {[%emt 0:00:49]} b5 {[%emt 0:05:28]} 18. Nf4 {[%emt 0:01:14]} Bd7 {[%emt 0:09:54]} 19. b3 {[%emt 0:01:56]} cxb3 {[%emt 0:02:43]} 20. axb3 {[%emt 0:02:14]} Rfc8 {[%emt 0:00:27]} 21. e5 {[%emt 0:05:12]} Nd5 {[%emt 0:02:42]} 22. e6 {[%emt 0:00:10]} Be8 {[%emt 0:03:14]} 23. Nxd5 {[%emt 0:04:40]} cxd5 {[%emt 0:00:47]} 24. Qf5 {[%emt 0:00:07]} Qd8 {[%emt 0:10:51]} 25. Ra6 {[%emt 0:04:13]} f6 {[%emt 0:01:17]} 26. Ba5 {[%emt 0:00:08]} Rc7 {[%emt 0:00:50]} 27. Bxc7 {[%emt 0:00:46]} Qxc7 {[%emt 0:00:01]} 28. Qxd5 {[%emt 0:00:30]} Rc8 {[%emt 0:00:35]} 29. Rea1 {[%emt 0:02:30]} Bc6 {[%emt 0:00:21]} 30. Qh5 {[%emt 0:00:59]} Be8 {[%emt 0:01:19]} 31. Qf5 {[%emt 0:02:33]} Bd6 {[%emt 0:00:19]} 32. Qe4 {[%emt 0:02:58]} 1-0

[Event "1st Regina Cattolica Open 2019"]
[Site "Cattolica"]
[Date "2019.06.16"]
[Round "5.3"]
[White "Mezentsev, Ivan"]
[Black "Repka, Christopher"]
[Result "1-0"]
[ECO "A10"]
[WhiteElo "2281"]
[BlackElo "2482"]
[Annotator "ChessBase"]
[PlyCount "73"]
[EventDate "2019.06.14"]
[EventType "swiss"]
[EventCountry "ITA"]
[SourceTitle "playchess.com"]
[Source "ChessBase"]
[SourceQuality "1"]
[TimeControl "5400+30"]

1. Nf3 {[%emt 0:00:00]} d5 {[%emt 0:00:00]} 2. e3 {[%emt 0:00:00]} c6 {[%emt 0:00:01]} 3. c4 {[%emt 0:00:19]} e6 {[%emt 0:00:04]} 4. b3 {[%emt 0:02:27]} f5 {[%emt 0:01:01]} 5. Bb2 {[%emt 0:01:25]} Nf6 {[%emt 0:00:05]} 6. Be2 {[%emt 0:02:20]} Bd6 {[%emt 0:05:23]} 7. O-O {[%emt 0:00:12]} O-O {[%emt 0:00:12]} 8. d4 {[%emt 0:02:17]} b6 {[%emt 0:02:26]} 9. Ba3 {[%emt 0:03:33]} c5 {[%emt 0:01:45]} 10. cxd5 {[%emt 0:04:04]} exd5 {[%emt 0:00:06]} 11. Nc3 {[%emt 0:00:46]} Bb7 {[%emt 0:01:28]} 12. Rc1 {[%emt 0:04:40]} Nbd7 {[%emt 0:00:47]} 13. g3 {[%emt 0:03:19]} Rc8 {[%emt 0:01:04]} 14. Nh4 {[%emt 0:06:41]} Ne4 {[%emt 0:11:29]} 15. Nxd5 {[%emt 0:03:32]} Bxd5 {[%emt 0:12:46]} 16. dxc5 {[%emt 0:00:08]} Bb7 {[%emt 0:02:00]} 17. Bc4+ {[%emt 0:04:24]} Kh8 {[%emt 0:00:15]} 18. cxd6 {[%emt 0:02:37]} Ne5 {[%emt 0:01:16]} 19. d7 {[%emt 0:03:16]} Ng5 {[%emt 0:09:35]} 20. f3 {[%emt 0:05:02]} Rc7 {[%emt 0:00:05]} 21. Qd6 {[%emt 0:27:00]} Nxd7 {[%emt 0:04:49]} 22. Rcd1 {[%emt 0:00:48]} Qc8 {[%emt 0:00:19]} 23. Bb2 {[%emt 0:00:43]} Nc5 {[%emt 0:01:10]} 24. Qh6 {[%emt 0:02:14]} Nce6 {[%emt 0:09:55]} 25. Ng6+ {[%emt 0:02:45]} Kg8 {[%emt 0:00:06]} 26. Qxg5 {[%emt 0:00:02]} hxg6 {[%emt 0:01:44]} 27. Qxg6 {[%emt 0:00:21]} Rxc4 {[%emt 0:00:04]} 28. bxc4 {[%emt 0:00:09]} Rf7 {[%emt 0:00:02]} 29. Rd6 {[%emt 0:01:07]} Nf8 {[%emt 0:00:09]} 30. Qg5 {[%emt 0:00:39]} Qxc4 {[%emt 0:00:27]} 31. Rd8 {[%emt 0:00:25]} Qb4 {[%emt 0:01:51]} 32. Be5 {[%emt 0:00:11]} Ba6 {[%emt 0:02:02]} 33. Rfd1 {[%emt 0:00:11]} Bb5 {[%emt 0:02:49]} 34. Rxf8+ {[%emt 0:00:37]} Qxf8 {[%emt 0:00:21]} 35. Rd8 {[%emt 0:00:04]} Be8 {[%emt 0:00:05]} 36. Bd6 {[%emt 0:00:02]} Qxd6 {[%emt 0:00:22]} 37. Rxd6 {[%emt 0:00:13]} 1-0

[Event "1st Regina Cattolica Open 2019"]
[Site "Cattolica"]
[Date "2019.06.16"]
[Round "5.4"]
[White "Deshpande Abhishek"]
[Black "Drazic, Sinisa"]
[Result "0-1"]
[ECO "B00"]
[WhiteElo "1827"]
[BlackElo "2365"]
[Annotator "NA"]
[PlyCount "116"]
[EventDate "2019.06.14"]
[EventType "swiss"]
[EventCountry "ITA"]
[SourceTitle "playchess.com"]
[Source "ChessBase"]
[SourceQuality "1"]
[TimeControl "5400+30"]

1. e4 {[%emt 0:00:06]} Nc6 {[%emt 0:00:00]} 2. d4 {[%emt 0:00:18]} d6 {[%emt 0:00:00]} 3. Nc3 {[%emt 0:00:49]} a6 {[%emt 0:00:00]} 4. Be3 {[%emt 0:00:32]} Nf6 {[%emt 0:01:08]} 5. f3 {[%emt 0:00:21]} e5 {[%emt 0:00:24]} 6. d5 {[%emt 0:02:32]} Ne7 {[%emt 0:00:15]} 7. Qd2 {[%emt 0:02:48]} h6 {[%emt 0:00:18]} 8. O-O-O {[%emt 0:00:19]} Ng6 {[%emt 0:01:25]} 9. Kb1 {[%emt 0:00:54]} Be7 {[%emt 0:00:03]} 10. Nge2 {[%emt 0:01:42]} c5 {[%emt 0:02:20]} 11. h4 {[%emt 0:04:03]} h5 {[%emt 0:03:58]} 12. Bg5 {[%emt 0:02:37]} Nh7 {[%emt 0:02:43]} 13. Bxe7 {[%emt 0:00:13]} Qxe7 {[%emt 0:00:03]} 14. g3 {[%emt 0:00:37]} b5 {[%emt 0:00:19]} 15. Bg2 {[%emt 0:01:10]} Nf6 {[%emt 0:00:09]} 16. Ng1 {[%emt 0:02:56]} c4 {[%emt 0:01:57]} 17. Nh3 {[%emt 0:00:45]} Qa7 {[%emt 0:05:00]} 18. Ne2 {[%emt 0:01:16]} a5 {[%emt 0:01:07]} 19. Rhf1 {[%emt 0:00:45]} b4 {[%emt 0:00:23]} 20. c3 {[%emt 0:00:59]} Nd7 {[%emt 0:02:06]} 21. f4 {[%emt 0:01:04]} Nc5 {[%emt 0:00:24]} 22. f5 {[%emt 0:01:01]} Nf8 {[%emt 0:00:15]} 23. f6 {[%emt 0:00:37]} g6 {[%emt 0:03:36]} 24. Ng5 {[%emt 0:01:42]} Bg4 {[%emt 0:01:47]} 25. Bf3 {[%emt 0:00:41]} Bxf3 {[%emt 0:00:16]} 26. Rxf3 {[%emt 0:00:21]} Nfd7 {[%emt 0:00:16]} 27. Qe3 {[%emt 0:02:13]} Nb6 {[%emt 0:02:46]} 28. Ne6 {[%emt 0:05:12]} Nba4 {[%emt 0:01:52]} 29. Nxc5 {[%emt 0:00:21]} Nxc5 {[%emt 0:02:37]} 30. Nc1 {[%emt 0:04:01]} Kd7 {[%emt 0:01:37]} 31. Qe2 {[%emt 0:00:40]} Qa6 {[%emt 0:00:05]} 32. Re3 {[%emt 0:02:43]} Rhb8 {[%emt 0:03:33]} 33. Qg2 {[%emt 0:04:54]} Na4 {[%emt 0:04:35]} 34. cxb4 {[%emt 0:02:06]} Qb6 {[%emt 0:07:40]} 35. Re2 {[%emt 0:01:57]} Qxb4 {[%emt 0:01:21]} 36. Rc2 {[%emt 0:01:46]} Nc3+ {[%emt 0:01:05]} 37. Rxc3 {[%emt 0:00:36]} Qxc3 {[%emt 0:00:02]} 38. Qc2 {[%emt 0:00:45]} Qb4 {[%emt 0:04:07]} 39. Ka1 {[%emt 0:00:20]} Ra6 {[%emt 0:03:31]} 40. Ne2 {[%emt 0:00:24]} Rab6 {[%emt 0:01:25]} 41. Rb1 {[%emt 0:02:06]} a4 {[%emt 0:01:19]} 42. a3 {[%emt 0:00:12]} Qb3 {[%emt 0:02:58]} 43. Qxb3 {[%emt 0:01:58]} Rxb3 {[%emt 0:00:12]} 44. Nc3 {[%emt 0:00:24]} Rxc3 {[%emt 0:03:55]} 45. bxc3 {[%emt 0:00:09]} Rxb1+ {[%emt 0:00:06]} 46. Kxb1 {[%emt 0:00:14]} Ke8 {[%emt 0:00:00]} 47. Kc2 {[%emt 0:00:29]} Kf8 {[%emt 0:00:02]} 48. Kd2 {[%emt 0:00:19]} Kg8 {[%emt 0:00:02]} 49. Ke3 {[%emt 0:00:40]} Kh7 {[%emt 0:00:02]} 50. Kf3 {[%emt 0:00:38]} g5 {[%emt 0:02:52]} 51. g4 {[%emt 0:09:27]} gxh4 {[%emt 0:04:07]} 52. gxh5 {[%emt 0:00:09]} Kh6 {[%emt 0:00:05]} 53. Kg4 {[%emt 0:00:06]} h3 {[%emt 0:00:03]} 54. Kxh3 {[%emt 0:00:06]} Kxh5 {[%emt 0:00:02]} 55. Kg3 {[%emt 0:00:23]} Kg5 {[%emt 0:00:01]} 56. Kh3 {[%emt 0:00:35]} Kxf6 {[%emt 0:00:03]} 57. Kh4 {[%emt 0:00:11]} Kg6 {[%emt 0:00:01]} 58. Kg4 {[%emt 0:00:09]} f6 {[%emt 0:00:10]} 0-1